fUSD/lending_fUSD_20240815
["ID","MTS","AMOUNT","RATE_DAILY","PERIOD"]
[334970795,1723695033576,-414.52289715,0.00022904,2]
[334970796,1723695033586,-370.37,0.00023,14]
[334970797,1723695033596,-500.0,0.00023,2]
[334970798,1723695033607,-2322.75506347,0.00023033,2]
[334970799,1723695033617,-150.0,0.00023071,2]
[334970800,1723695033627,-382.69472281,0.00023205,2]
[334970801,1723695033636,-180.0,0.00023205,2]
[334970802,1723695033822,-414.52289715,0.0002323,2]
[334970803,1723695033833,-1013.0,0.000233,2]
[334970804,1723695033842,-292.361657,0.000234,7]
[334970805,1723695033853,-151.0,0.000234,2]
[334970806,1723695033863,-414.52289717,0.00023425,2]
[334970807,1723695033872,-151.0,0.0002346,7]
[334970808,1723695033882,-151.0,0.0002346,7]
[334970809,1723695033891,-151.0,0.0002346,7]
[334970810,1723695033901,-243.641731,0.0002346,7]
[334970811,1723695033910,-151.0,0.0002346,7]
[334970812,1723695033920,-151.37128,0.00023463,2]
[334970813,1723695033929,-300.0,0.00023463,2]
[334970814,1723695033939,-28012.42411827,0.00023498,31]
[334970815,1723695033948,-151.0,0.00023498,7]
[334970816,1723695033957,-920.577954,0.00023498,7]
[334970817,1723695033967,-920.577954,0.00023498,7]
[334970818,1723695033976,-151.0,0.00023498,7]
[334970819,1723695033985,-275.544992,0.00023498,7]
[334970820,1723695033995,-151.0,0.00023498,7]
[334970821,1723695034005,-275.544992,0.00023498,7]
[334970822,1723695034014,-44679.3487,0.000235,2]
[334970823,1723695034023,-151.0,0.000235,7]
[334970824,1723695034032,-151.0,0.000235,7]
[334970825,1723695034041,-151.0,0.000235,7]
[334970826,1723695034050,-151.0,0.000235,7]
[334970827,1723695034060,-222.297474,0.000235,7]
[334970828,1723695034069,-222.297474,0.000235,7]
[334970829,1723695034078,-151.0,0.000235,7]
[334970830,1723695034087,-151.0,0.000235,7]
[334970831,1723695034097,-151.0,0.000235,7]
[334970832,1723695034107,-151.0,0.000235,7]
[334970833,1723695034116,-151.0,0.000235,7]
[334970834,1723695034126,-151.0,0.000235,7]
[334970835,1723695034134,-920.577954,0.000235,7]
[334970836,1723695034144,-920.577954,0.000235,7]
[334970837,1723695034154,-151.0,0.000235,7]
[334970838,1723695034163,-275.544992,0.000235,7]
[334970839,1723695034173,-151.0,0.000235,7]
[334970840,1723695034182,-275.544992,0.000235,7]
[334970841,1723695034191,-382.69472282,0.00023524,2]
[334970842,1723695034200,-983.71,0.00023534,2]
[334970843,1723695034209,-1000.0,0.000236,2]
[334970844,1723695034219,-470.6982,0.000236,2]
[334970845,1723695034232,-150.0,0.00023648,2]
[334970846,1723695034242,-150.98,0.00023671,2]
[334970847,1723695034251,-150.0,0.00023671,2]
[334970848,1723695034261,-426.49,0.00023671,2]
[334970849,1723695034270,-558.15,0.00023671,2]
[334970850,1723695034279,-530.62,0.00023671,2]
[334970851,1723695034288,-150.0,0.00023671,2]
[334970852,1723695034299,-426.49,0.00023671,2]
[334970853,1723695034308,-426.49,0.00023671,2]
[334970854,1723695034317,-150.0,0.00023671,2]
[334970855,1723695034326,-426.01,0.00023671,2]
[334970856,1723695034335,-1000.0,0.00023675,2]
[334970857,1723695034344,-151.0,0.0002369,7]
[334970858,1723695034353,-151.0,0.0002369,7]
[334970859,1723695034362,-151.0,0.0002369,7]
[334970860,1723695034371,-151.0,0.0002369,7]
[334970861,1723695034381,-151.0,0.0002369,7]
[334970862,1723695034391,-151.0,0.0002369,7]
[334970863,1723695034400,-920.577954,0.0002369,7]
[334970864,1723695034409,-920.577954,0.0002369,7]
[334970865,1723695034418,-153.209694,0.00023698,2]
[334970866,1723695034428,-151.0,0.00023698,7]
[334970867,1723695034437,-151.0,0.00023698,7]
[334970868,1723695034447,-151.0,0.00023698,7]
[334970869,1723695034456,-151.0,0.00023698,7]
[334970870,1723695034465,-222.297474,0.00023698,7]
[334970871,1723695034474,-222.297474,0.00023698,7]
[334970872,1723695034484,-151.0,0.00023698,7]
[334970873,1723695034493,-4119.267767,0.000237,2]
[334970874,1723695034502,-1779.76605,0.000237,2]
[334970875,1723695034511,-151.0,0.000237,7]
[334970876,1723695034520,-295.593008,0.000237,7]
[334970877,1723695034528,-151.0,0.000237,7]
[334970878,1723695034538,-151.0,0.000237,7]
[334970879,1723695034547,-222.297474,0.000237,7]
[334970880,1723695034557,-222.297474,0.000237,7]
[334970881,1723695034567,-151.0,0.000237,7]
[334970882,1723695034576,-151.0,0.000237,7]
[334970883,1723695034585,-254.169409,0.000237,7]
[334970884,1723695034595,-151.0,0.000237,7]
[334970885,1723695034607,-700.0,0.000237,8]
[334970886,1723695034616,-248.115921,0.000237,7]
[334970887,1723695034626,-886.95746,0.000237,2]
[334970888,1723695034635,-2322.75506347,0.00023767,2]
[334970889,1723695034645,-151.0,0.0002379,7]
[334970890,1723695034658,-151.0,0.0002379,7]
[334970891,1723695034667,-151.0,0.0002379,7]
[334970892,1723695034677,-222.297474,0.0002379,7]
[334970893,1723695034686,-222.297474,0.0002379,7]
[334970894,1723695034696,-151.0,0.0002379,7]
[334970895,1723695034705,-158.324017,0.0002379,7]
[334970896,1723695034715,-162.499514,0.0002379,7]
[334970897,1723695034725,-196.882783,0.0002379,7]
[334970898,1723695034735,-920.577954,0.0002379,7]
[334970899,1723695034744,-920.577954,0.0002379,7]
[334970900,1723695034753,-151.0,0.0002379,7]
[334970901,1723695034763,-275.544992,0.0002379,7]
[334970902,1723695034772,-151.0,0.0002379,7]
[334970903,1723695034781,-275.544992,0.0002379,7]
[334970904,1723695034791,-1000.0,0.000238,2]
[334970905,1723695034800,-1000.0,0.000238,2]
[334970906,1723695034810,-1000.0,0.000238,2]
[334970907,1723695034819,-1000.0,0.000238,2]
[334970908,1723695034828,-1000.0,0.000238,2]
[334970909,1723695034839,-1000.0,0.000238,2]
[334970910,1723695034848,-1000.0,0.000238,2]
[334970911,1723695034857,-1000.0,0.000238,2]
[334970912,1723695034866,-1000.0,0.000238,2]
[334970913,1723695034875,-1000.0,0.000238,2]
[334970914,1723695034885,-1000.0,0.000238,2]
[334970915,1723695034894,-1000.0,0.000238,2]
[334970916,1723695034903,-1000.0,0.000238,2]
[334970917,1723695034913,-1000.0,0.000238,2]
[334970918,1723695034922,-1000.0,0.000238,2]
[334970919,1723695034932,-1000.0,0.000238,2]
[334970920,1723695034941,-1000.0,0.000238,2]
[334970921,1723695034951,-1000.0,0.000238,2]
[334970922,1723695034960,-1000.0,0.000238,2]
[334970923,1723695034969,-1000.0,0.000238,2]
[334970924,1723695034978,-1000.0,0.000238,2]
[334970925,1723695034987,-1000.0,0.000238,2]
[334970926,1723695034996,-1000.0,0.000238,2]
[334970927,1723695035006,-1000.0,0.000238,2]
[334970928,1723695035015,-1000.0,0.000238,2]
[334970929,1723695035024,-1000.0,0.000238,2]
[334970930,1723695035034,-1000.0,0.000238,2]
[334970931,1723695035044,-1000.0,0.000238,2]
[334970932,1723695035053,-1000.0,0.000238,2]
[334970933,1723695035062,-1000.0,0.000238,2]
[334970934,1723695035071,-1000.0,0.000238,2]
[334970935,1723695035080,-1000.0,0.000238,2]
[334970936,1723695035089,-1000.0,0.000238,2]
[334970937,1723695035098,-1000.0,0.000238,2]
[334970938,1723695035110,-1000.0,0.000238,2]
[334970939,1723695035119,-1000.0,0.000238,2]
[334970940,1723695035128,-1000.0,0.000238,2]
[334970941,1723695035137,-1000.0,0.000238,2]
[334970942,1723695035146,-1000.0,0.000238,2]
[334970943,1723695035155,-1000.0,0.000238,2]
[334970944,1723695035164,-1000.0,0.000238,2]
[334970945,1723695035173,-1000.0,0.000238,2]
[334970946,1723695035182,-1000.0,0.000238,2]
[334970947,1723695035191,-1000.0,0.000238,2]
[334970948,1723695035200,-1000.0,0.000238,2]
[334970949,1723695035210,-1000.0,0.000238,2]
[334970950,1723695035219,-1000.0,0.000238,2]
[334970951,1723695035232,-1000.0,0.000238,2]
[334970952,1723695035241,-1000.0,0.000238,2]
[334970953,1723695035250,-1000.0,0.000238,2]
[334970954,1723695035259,-1000.0,0.000238,2]
[334970955,1723695035270,-1000.0,0.000238,2]
[334970956,1723695035279,-1000.0,0.000238,2]
[334970957,1723695035289,-1000.0,0.000238,2]
[334970958,1723695035299,-1000.0,0.000238,2]
[334970959,1723695035309,-1000.0,0.000238,2]
[334970960,1723695035321,-1000.0,0.000238,2]
[334970961,1723695035330,-1000.0,0.000238,2]
[334970962,1723695035340,-1000.0,0.000238,2]
[334970963,1723695035349,-1000.0,0.000238,2]
[334970964,1723695035365,-1000.0,0.000238,2]
[334970965,1723695035374,-1000.0,0.000238,2]
[334970966,1723695035384,-1000.0,0.000238,2]
[334970967,1723695035393,-1000.0,0.000238,2]
[334970968,1723695035403,-1000.0,0.000238,2]
[334970969,1723695035412,-1000.0,0.000238,2]
[334970970,1723695035422,-1000.0,0.000238,2]
[334970971,1723695035431,-1000.0,0.000238,2]
[334970972,1723695035441,-1000.0,0.000238,2]
[334970973,1723695035450,-1000.0,0.000238,2]
[334970974,1723695035459,-1000.0,0.000238,2]
[334970975,1723695035468,-1000.0,0.000238,2]
[334970976,1723695035477,-1000.0,0.000238,2]
[334970977,1723695035485,-1000.0,0.000238,2]
[334970978,1723695035495,-1000.0,0.000238,2]
[334970979,1723695035503,-1000.0,0.000238,2]
[334970980,1723695035512,-1000.0,0.000238,2]
[334970981,1723695035521,-1000.0,0.000238,2]
[334970982,1723695035530,-164.0,0.000238,2]
[334970983,1723695035539,-1000.0,0.000238,7]
[334970984,1723695035547,-1004.09,0.000238,7]
[334970985,1723695035556,-151.0,0.000238,7]
[334970986,1723695035565,-151.0,0.000238,7]
[334970987,1723695035575,-253.434012,0.000238,7]
[334970988,1723695035584,-151.0,0.000238,7]
[334970989,1723695035593,-151.0,0.000238,7]
[334970990,1723695035602,-151.0,0.000238,7]
[334970991,1723695035612,-151.0,0.000238,7]
[334970992,1723695035621,-151.0,0.000238,7]
[334970993,1723695035630,-495.0,0.000238,7]
[334970994,1723695035639,-222.297474,0.000238,7]
[334970995,1723695035648,-222.297474,0.000238,7]
[334970996,1723695035657,-222.297474,0.000238,7]
[334970997,1723695035666,-222.297474,0.000238,7]
[334970998,1723695035675,-222.297474,0.000238,7]
[334970999,1723695035684,-222.297474,0.000238,7]
[334971000,1723695035692,-151.0,0.000238,7]
[334971001,1723695035701,-160.529229,0.000238,7]
[334971002,1723695035710,-1500.0,0.000238,8]
[334971003,1723695035719,-193.0,0.000238,7]
[334971004,1723695035728,-150.0,0.000238,5]
[334971005,1723695035737,-920.577954,0.000238,7]
[334971006,1723695035746,-920.577954,0.000238,7]
[334971007,1723695035755,-920.577954,0.000238,7]
[334971008,1723695035764,-920.577954,0.000238,7]
[334971009,1723695035773,-920.577954,0.000238,7]
[334971010,1723695035782,-920.577954,0.000238,7]
[334971011,1723695035791,-226.0,0.000238,2]
[334971012,1723695035800,-151.0,0.000238,7]
[334971013,1723695035809,-151.0,0.000238,7]
[334971014,1723695035818,-151.0,0.000238,7]
[334971015,1723695035828,-275.544992,0.000238,7]
[334971016,1723695035838,-275.544992,0.000238,7]
[334971017,1723695035847,-275.544992,0.000238,7]
[334971018,1723695035858,-275.544992,0.000238,7]
[334971019,1723695035867,-275.544992,0.000238,7]
[334971020,1723695035877,-275.544992,0.000238,7]
[334971021,1723695035886,-162.75,0.00023805,2]
[334971022,1723695035895,-927.0,0.00023814,2]
[334971023,1723695035904,-709.13293596,0.00023879,2]
[334971024,1723695035914,-1000.0,0.0002388,2]
[334971025,1723695035923,-1000.0,0.0002388,2]
[334971026,1723695035932,-1000.0,0.0002388,2]
[334971027,1723695035941,-1000.0,0.0002388,2]
[334971028,1723695035950,-1000.0,0.0002388,2]
[334971029,1723695035960,-669.33749913,0.0002388,2]
[334971030,1723695036111,-292.365,0.0002388,2]
[334971031,1723695036124,-38.29750087,0.0002388,2]
[334971032,1723695036135,-845.12148238,0.0002388,2]
[334971033,1723695036149,-154.87851762,0.0002388,2]
[334971034,1723695036158,-1000.0,0.0002388,2]
[334971035,1723695036167,-1000.0,0.0002388,2]
[334971036,1723695036177,-1000.0,0.0002388,2]
[334971037,1723695036186,-494.29168488,0.0002388,2]
[334971049,1723695038380,-150.0,0.00013,2]
[334971050,1723695038391,-1074.78314637,0.00013001,2]
[334971051,1723695038401,-155.0825747,0.00013052,2]
[334971052,1723695038538,-225.27618661,0.00013052,2]
[334971053,1723695038547,-439.77113938,0.00013052,2]
[334971054,1723695038644,-161.02679008,0.00013052,2]
[334971055,1723695038654,-179.49973133,0.00013292,2]
[334971056,1723695038663,-280.21,0.00018,7]
[334971057,1723695038673,-172.61,0.00022797,2]
[334971058,1723695038682,-505.70831512,0.0002388,2]
[334971059,1723695038691,-1000.0,0.0002388,2]
[334971060,1723695038701,-1000.0,0.0002388,2]
[334971061,1723695038712,-758.34734885,0.0002388,2]
[334971062,1723695038722,-151.0,0.0002388,7]
[334971063,1723695038731,-222.297474,0.0002388,7]
[334971064,1723695038741,-222.297478,0.0002388,7]
[334971065,1723695038751,-920.577954,0.0002388,7]
[334971066,1723695038760,-920.577949,0.0002388,7]
[334971067,1723695038769,-262.5942,0.00023889,2]
[334971068,1723695038779,-1803.13590606,0.00023897,2]
[334971069,1723695038791,-831.30533474,0.00023897,2]
[334971070,1723695038800,-151.25895519,0.000239,2]
[334971071,1723695038810,-1583.79426262,0.000239,2]
[334971072,1723695038820,-180.54021472,0.000239,2]
[334971073,1723695038830,-167.23076323,0.000239,2]
[334971074,1723695038839,-1182.07827791,0.000239,8]
[334971075,1723695038852,-1117.92172209,0.000239,8]
[334971076,1723695038865,-136.56135573,0.000239,2]
[334971122,1723695040379,-528.72304049,0.000239,2]
[334971123,1723695040391,-209.64675105,0.000239,2]
[334971124,1723695040400,-91.37758486,0.000239,7]
[334971125,1723695040411,-59.62241514,0.000239,7]
[334971126,1723695040421,-273.03239765,0.000239,7]
[334971127,1723695040432,-2.51259435,0.000239,7]
[334971128,1723695040441,-275.544992,0.000239,7]
[334971129,1723695040451,-392.88321767,0.00023902,2]
[334971130,1723695040486,-398.74,0.00023902,2]
[334971467,1723695046550,-335.97564,0.00022961,2]
[334971468,1723695046563,-350.56046493,0.00022961,2]
[334971495,1723695430213,253.12,0.00026058,120]
[334971500,1723695872509,197.5,0.00026406,120]
[334971509,1723696221322,4130.78695014,0.0001,2]
[334971519,1723696231381,-531.22304986,0.0001,2]
[334971521,1723696231390,-2358.74501618,0.00010899,2]
[334971523,1723696231441,-4670.58140367,0.00010899,2]
[334971524,1723696231452,-1205.83906467,0.00010899,2]
[334971525,1723696231500,-335.92939992,0.00010899,2]
[334971526,1723696231512,-348.89010204,0.00010899,2]
[334971527,1723696231523,-1797.40548677,0.00010899,2]
[334971528,1723696231535,-3345.67823061,0.00010899,2]
[334971529,1723696231559,-334.50747262,0.00010899,2]
[334971530,1723696231571,-1086.68820113,0.00010899,2]
[334971531,1723696231581,-68.86082982,0.00010948,2]
[334971532,1723696231594,-231.13917018,0.00010948,2]
[334971533,1723696231603,-118.86082982,0.00010999,2]
[334971534,1723696231614,-522.58091288,0.00010999,2]
[334971535,1723696231625,-399.12662878,0.00010999,2]
[334971555,1723696237558,-3753.67774367,0.00010999,2]
[334971556,1723696237568,-144.69570595,0.00011,2]
[334971557,1723696237616,-813.96833695,0.00011,2]
[334971558,1723696237627,-36.004674,0.00012,2]
[334971559,1723696237640,-616.0766574,0.00012,2]
[334971560,1723696237654,-654.34611674,0.00012,2]
[334971561,1723696237678,-3693.57255186,0.00012,2]
[334971562,1723696237688,-420.0,0.00012031,2]
[334971563,1723696237698,-2502.77061017,0.00012089,2]
[334971564,1723696237708,-5404.28015788,0.00012126,2]
[334971565,1723696237718,-1074.78314637,0.00012938,2]
[334971566,1723696237727,-297.57530605,0.00012966,2]
[334971567,1723696237737,-155.0,0.00012966,2]
[334971568,1723696237746,-150.99,0.00012966,2]
[334971569,1723696237757,-179.49973133,0.00012966,2]
[334971570,1723696237767,-150.0,0.00013,2]
[334971571,1723696237777,-1139.21329126,0.00013001,2]
[334971572,1723696237787,-218.92791442,0.00013001,2]
[334971573,1723696237797,-155.64245245,0.00013042,2]
[334971574,1723696237807,-255.21992957,0.00013042,2]
[334971575,1723696237817,-197.1552014,0.00013042,2]
[334971576,1723696237826,-328.27252306,0.00013052,2]
[334971577,1723696237835,-347.79523898,0.00013052,2]
[334971578,1723696237843,-240.92593688,0.00013052,2]
[334971579,1723696237853,-164.41632778,0.00013052,2]
[334971580,1723696237862,-155.0,0.00013052,2]
[334971581,1723696237871,-357.4813523,0.00013052,2]
[334971582,1723696237880,-236.53568031,0.00013086,2]
[334971583,1723696237890,-485.22914892,0.00013086,2]
[334971584,1723696237900,-587.0,0.00013222,2]
[334971585,1723696237909,-167.13267022,0.00013292,2]
[334971586,1723696237918,-539.43819753,0.00013292,2]
[334971587,1723696237928,-155.0,0.00013391,2]
[334971590,1723696238091,-155.0,0.00013391,2]
[334971591,1723696238102,-155.0,0.00013391,2]
[334971592,1723696238113,-155.0,0.00013688,2]
[334971593,1723696238122,-2033.78198603,0.00013851,2]
[334971595,1723696238133,-275.15,0.00013973,2]
[334971596,1723696238142,-160.20492646,0.0001399,2]
[334971597,1723696238152,-1445.11,0.0001399,2]
[334971598,1723696238163,-648.52,0.00014225,2]
[334971599,1723696238173,-628.70277812,0.00014225,2]
[334971600,1723696238184,-303.98208233,0.00014234,2]
[334971601,1723696238195,-493.63885733,0.00014235,2]
[334971602,1723696238206,-823.0,0.0001453,2]
[334971603,1723696238215,-4581.85747888,0.00014671,2]
[334971604,1723696238224,-4540.49,0.00014753,2]
[334971605,1723696238233,-484.0,0.00015968,2]
[334971606,1723696238249,-490.29,0.00017534,2]
[334971607,1723696238263,-176.06,0.00017793,2]
[334971608,1723696238274,-250.29,0.00018,7]
[334971609,1723696238284,-150.0,0.00018845,2]
[334971610,1723696238293,-862.69,0.0001885,2]
[334971611,1723696238303,-200.0,0.00018894,2]
[334971612,1723696238313,-816.0,0.000189,3]
[334971613,1723696238322,-250.0,0.00018921,2]
[334971614,1723696238332,-1909.34,0.00018982,2]
[334971615,1723696238342,-500.0,0.00018998,2]
[334971616,1723696238352,-925.53,0.00018998,2]
[334971617,1723696238362,-2540.88,0.00019028,2]
[334971618,1723696238371,-1288.54,0.00019164,2]
[334971619,1723696238381,-197.5,0.00019204,2]
[334971620,1723696238390,-250.0,0.00019204,2]
[334971621,1723696238400,-9743.35761556,0.00019326,2]
[334971622,1723696238413,-2690.65746177,0.00019326,2]
[334971623,1723696238425,-445.34091486,0.00019326,2]
[334971624,1723696238436,-8436.90292325,0.00019326,2]
[334971625,1723696238457,-504.3514221,0.00019326,2]
[334971626,1723696238468,-1805.25000017,0.00019326,2]
[334971627,1723696238484,-264.13966229,0.00019326,2]
[334971628,1723696238494,-171.63,0.00019854,2]
[334971629,1723696238503,-172.19,0.00019854,2]
[334971630,1723696238513,-1178.79,0.00019886,2]
[334971631,1723696238522,-176.06,0.00020057,2]
[334971632,1723696238532,-275.15,0.00020447,2]
[334971633,1723696238541,-253.12,0.00020846,2]
[334971634,1723696238551,-500.0,0.00021029,2]
[334971635,1723696238560,-862.69,0.00021207,2]
[334971636,1723696238570,-197.5,0.00021605,2]
[334971637,1723696238579,-1004.0,0.000218,2]
[334971638,1723696238588,-1000.0,0.000219,2]
[334971639,1723696238600,-22.88353667,0.00021918,2]
[334971660,1723696239515,-264.51117711,0.00014235,2]
[334971662,1723696239525,-152.19646333,0.00021918,2]
[334971664,1723696239534,-150.0,0.00021918,2]
[334971665,1723696239544,-150.0,0.00022019,2]
[334971666,1723696239553,-176.06,0.00022321,2]
[334971667,1723696239563,-150.0,0.00022495,2]
[334971668,1723696239573,-150.0,0.00022631,4]
[334971669,1723696239584,-3000.0,0.000227,2]
[334971670,1723696239595,-1207.1225,0.00022761,2]
[334971671,1723696239605,-7469.9757,0.00022861,2]
[334971672,1723696239615,-200.0,0.00023,2]
[334971673,1723696239625,-150.0,0.00023071,2]
[334971674,1723696239637,-171.63,0.00023163,2]
[334971675,1723696239647,-1782.12794719,0.000232,2]
[334971676,1723696239656,-180.0,0.00023205,2]
[334971677,1723696239666,-150.0,0.00023242,4]
[334971678,1723696239677,-635.23236267,0.000233,2]
[334971679,1723696239691,-791.2481757,0.000233,2]
[334971680,1723696239701,-300.15,0.00023397,2]
[334971681,1723696239710,-150.0,0.00023397,2]
[334971682,1723696239719,-302.57,0.00023397,2]
[334971683,1723696239730,-253.12,0.00023452,2]
[334971684,1723696239740,-862.69,0.00023563,2]
[334971685,1723696239751,-388.08478933,0.00023581,2]
[334971686,1723696239760,-150.0,0.00023648,2]
[334971687,1723696239769,-150.0,0.00023671,2]
[334971688,1723696239779,-398.27720298,0.000237,8]
[334971689,1723696239792,-101.72279702,0.000237,8]
[334971690,1723696239801,-420.36124782,0.00023757,2]
[334971691,1723696239811,-232.27550641,0.0002379,2]
[334971692,1723696239821,-822.4614,0.0002379,2]
[334971693,1723696239831,-176.1262,0.0002379,2]
[334971694,1723696239840,-166.0826,0.0002379,2]
[334971695,1723696239850,-686.1826,0.0002379,2]
[334971696,1723696239859,-1100.0,0.000238,8]
[334971697,1723696239869,-226.0,0.000238,2]
[334971698,1723696239879,-150.0,0.00023854,4]
[334971699,1723696239889,-232.27550634,0.0002387,2]
[334971700,1723696239898,-151.0,0.0002388,7]
[334971701,1723696239908,-198.767796,0.0002388,7]
[334971702,1723696239918,-6.50434641,0.0002388,4]
[334971703,1723696239930,-1268.3754551,0.0002388,4]
[334971704,1723696239943,-7743.25514358,0.0002388,4]
[334971705,1723696239955,-1508.73730565,0.0002388,4]
[334971706,1723696239967,-14149.63151993,0.0002388,4]
[334971707,1723696239978,-11677.0,0.0002388,4]
[334971708,1723696240721,-1182.8,0.00011336,2]
[334971960,1723696243364,-904.10435374,0.00011336,2]
[334972074,1723696246478,-1001.99163547,0.00011336,2]
[334972075,1723696246490,-399.98561821,0.00011336,2]
[334972076,1723696246535,-252.76883574,0.00011336,2]
[334972077,1723696246546,-134.79748002,0.00011336,2]
[334972078,1723696246557,-10405.98181063,0.0002388,4]
[334972079,1723696246572,-151.0,0.0002389,2]
[334972080,1723696246585,-151.0,0.0002389,2]
[334972081,1723696246603,-151.0,0.0002389,2]
[334972082,1723696246616,-227.336757,0.0002389,7]
[334972083,1723696246628,-227.336757,0.0002389,7]
[334972084,1723696246641,-227.336757,0.0002389,7]
[334972085,1723696246655,-227.336757,0.0002389,7]
[334972086,1723696246665,-227.336757,0.0002389,7]
[334972087,1723696246676,-227.336757,0.0002389,7]
[334972088,1723696246688,-151.0,0.0002389,7]
[334972089,1723696246704,-151.0,0.0002389,7]
[334972090,1723696246714,-151.0,0.0002389,7]
[334972092,1723696246725,-6698.6626,0.0002389,2]
[334972094,1723696246736,-7387.6276,0.0002389,2]
[334972096,1723696246747,-30098.4525,0.0002389,2]
[334972097,1723696246758,-47277.24403673,0.0002389,2]
[334972098,1723696246772,-3627.57220054,0.0002389,2]
[334972101,1723696246785,-1365.16435419,0.0002389,2]
[334972109,1723696335323,219.75,0.0002566,120]
[334972180,1723697431783,-550.0,0.0001,2]
[334972181,1723697431793,-525.43,0.00010097,2]
[334972182,1723697431891,-613.78329126,0.00010097,2]
[334972183,1723697431901,-155.0,0.0001089,2]
[334972184,1723697431910,-4007.51436949,0.00010949,2]
[334972185,1723697431947,-10986.34222444,0.00010949,2]
[334972186,1723697431960,-3876.44792318,0.00011999,2]
[334972187,1723697431970,-600.0,0.00012,2]
[334972188,1723697431979,-1511.45752811,0.00012938,2]
[334972189,1723697431988,-653.83104412,0.00012966,2]
[334972190,1723697431998,-687.08646626,0.00013001,2]
[334972192,1723697432007,-440.2096943,0.00013042,2]
[334972194,1723697432017,-347.79523898,0.00013052,2]
[334972195,1723697432027,-197.1552014,0.00013052,2]
[334972196,1723697432042,-328.27252306,0.00013052,2]
[334972197,1723697432051,-600.79792946,0.00013052,2]
[334972199,1723697432061,-357.4813523,0.00013052,2]
[334972200,1723697432070,-166.39780491,0.00013052,2]
[334972201,1723697432082,-493.63885733,0.00013052,2]
[334972202,1723697432091,-192.45664655,0.00013086,2]
[334972203,1723697432100,-432.5166998,0.00013086,2]
[334972204,1723697432110,-367.83900343,0.00013086,2]
[334972205,1723697432119,-211.08016593,0.00013086,2]
[334972206,1723697432130,-155.0,0.00013086,2]
[334972207,1723697432139,-297.45645505,0.00013086,2]
[334972208,1723697432148,-179.49973133,0.00013086,2]
[334972209,1723697432158,-179.49973133,0.00013292,2]
[334972210,1723697432167,-155.45612317,0.00013292,2]
[334972211,1723697432177,-217.7738049,0.00013292,2]
[334972212,1723697432186,-628.70277812,0.00013292,2]
[334972213,1723697432195,-365.75735011,0.00013391,2]
[334972214,1723697432205,-236.36319912,0.00013391,2]
[334972215,1723697432214,-303.98208233,0.00013688,2]
[334972216,1723697432223,-150.0,0.00013836,2]
[334972217,1723697432232,-527.88524388,0.0001385,2]
[334972218,1723697432241,-255.21992957,0.00013851,2]
[334972219,1723697432251,-650.0,0.00014,2]
[334972220,1723697432260,-362.35612532,0.00014245,2]
[334972221,1723697432269,-182.5,0.00017205,2]
[334972222,1723697432279,-2192.0,0.000189,3]
[334972223,1723697432288,-168.74,0.0001893,2]
[334972224,1723697432297,-1570.74,0.00019046,2]
[334972225,1723697432306,-1064.64,0.00019235,2]
[334972226,1723697432315,-345.08,0.00019247,2]
[334972227,1723697432325,-23450.34,0.00019256,2]
[334972228,1723697432345,-250.0,0.00019341,2]